[Event "Titled Tuesday Blitz August 22 Late 2023"]
[White "Koellner, Ruben Gideon"]
[Black "Mamedov, Rauf"]
[WhiteFideId "12993093"]
[BlackFideId "13401653"]
[WhiteElo "2721"]
[BlackElo "3029"]
[Result "0-1"]
[Round "3"]
[TimeControl "180+1"]
[Date "2023.08.22"]
[WhiteClock "0:00:05"]
[BlackClock "0:00:08"]
[Board "9"]

1. d4 {[%clk 0:02:59]}  Nf6 {[%clk 0:02:59]} 2. Nf3 {[%clk 0:02:59]}  g6 {[%clk 0:02:59]} 3. Nbd2 {[%clk 0:03:00]}  Bg7 {[%clk 0:02:59]} 4. e4 {[%clk 0:03:00]}  O-O {[%clk 0:02:58]} 5. c3 {[%clk 0:03:00]}  d6 {[%clk 0:02:58]} 6. Bc4 {[%clk 0:03:00]}  c5 {[%clk 0:02:57]} 7. dxc5 {[%clk 0:03:00]}  dxc5 {[%clk 0:02:58]} 8. Qe2 {[%clk 0:03:01]}  Nc6 {[%clk 0:02:58]} 9. O-O {[%clk 0:03:01]}  Qc7 {[%clk 0:02:59]} 10. Re1 {[%clk 0:03:02]}  Nd7 {[%clk 0:02:57]} 11. a4 {[%clk 0:02:49]}  b6 {[%clk 0:02:56]} 12. Ba6 {[%clk 0:02:45]}  Rd8 {[%clk 0:02:52]} 13. Bxc8 {[%clk 0:02:44]}  Raxc8 {[%clk 0:02:52]} 14. Nc4 {[%clk 0:02:44]}  Nf8 {[%clk 0:02:39]} 15. g3 {[%clk 0:02:40]}  Ne6 {[%clk 0:02:37]} 16. Ng5 {[%clk 0:02:36]}  Nxg5 {[%clk 0:02:37]} 17. Bxg5 {[%clk 0:02:37]}  Qd7 {[%clk 0:02:37]} 18. Rad1 {[%clk 0:02:33]}  Qe6 {[%clk 0:02:36]} 19. f3 {[%clk 0:02:28]}  h6 {[%clk 0:02:23]} 20. Be3 {[%clk 0:02:28]}  h5 {[%clk 0:02:23]} 21. h4 {[%clk 0:02:25]}  Rb8 {[%clk 0:02:10]} 22. Kg2 {[%clk 0:02:24]}  Rbc8 {[%clk 0:02:01]} 23. Bf4 {[%clk 0:02:13]}  Kh7 {[%clk 0:01:50]} 24. Rh1 {[%clk 0:02:05]}  Kg8 {[%clk 0:01:41]} 25. Rhe1 {[%clk 0:02:04]}  Kh7 {[%clk 0:01:28]} 26. Rh1 {[%clk 0:02:03]}  Bh6 {[%clk 0:01:28]} 27. Bxh6 {[%clk 0:02:01]}  Kxh6 {[%clk 0:01:29]} 28. g4 {[%clk 0:01:39]}  hxg4 {[%clk 0:01:28]} 29. fxg4 {[%clk 0:01:40]}  Rxd1 {[%clk 0:01:27]} 30. Rxd1 {[%clk 0:01:39]}  Kg7 {[%clk 0:01:28]} 31. Rd5 {[%clk 0:01:35]}  Rh8 {[%clk 0:01:26]} 32. Kg3 {[%clk 0:01:26]}  Qc8 {[%clk 0:01:18]} 33. Qf3 {[%clk 0:01:20]}  Qc7+ {[%clk 0:01:17]} 34. e5 {[%clk 0:01:12]}  Rd8 {[%clk 0:01:13]} 35. h5 {[%clk 0:01:06]}  Rxd5 {[%clk 0:01:11]} 36. Qxd5 {[%clk 0:01:07]}  f6 {[%clk 0:00:55]} 37. Kf4 {[%clk 0:00:51]}  Qc8 {[%clk 0:00:13]} 38. hxg6 {[%clk 0:00:48]}  Kxg6 {[%clk 0:00:12]} 39. exf6 {[%clk 0:00:46]}  Qc7+ {[%clk 0:00:10]} 40. Kf3 {[%clk 0:00:32]}  Kxf6 {[%clk 0:00:10]} 41. Qf5+ {[%clk 0:00:26]}  Kg7 {[%clk 0:00:10]} 42. Qe6 {[%clk 0:00:22]}  Nd8 {[%clk 0:00:11]} 43. Qe5+ {[%clk 0:00:21]}  Qxe5 {[%clk 0:00:11]} 44. Nxe5 {[%clk 0:00:22]}  Kf6 {[%clk 0:00:12]} 45. Kf4 {[%clk 0:00:22]}  Ne6+ {[%clk 0:00:12]} 46. Ke4 {[%clk 0:00:23]}  Ng5+ {[%clk 0:00:13]} 47. Kf4 {[%clk 0:00:23]}  Nh3+ {[%clk 0:00:13]} 48. Ke4 {[%clk 0:00:23]}  Nf2+ {[%clk 0:00:13]} 49. Kf4 {[%clk 0:00:24]}  Nh3+ {[%clk 0:00:12]} 50. Ke4 {[%clk 0:00:24]}  Nf2+ {[%clk 0:00:12]} 51. Kf4 {[%clk 0:00:24]}  Ke6 {[%clk 0:00:13]} 52. Nc6 {[%clk 0:00:15]}  Nd3+ {[%clk 0:00:13]} 53. Ke4 {[%clk 0:00:12]}  Nxb2 {[%clk 0:00:13]} 54. Nxa7 {[%clk 0:00:11]}  Nxa4 {[%clk 0:00:14]} 55. Nb5 {[%clk 0:00:11]}  Nb2 {[%clk 0:00:12]} 56. g5 {[%clk 0:00:11]}  Nc4 {[%clk 0:00:12]} 57. Nc7+ {[%clk 0:00:10]}  Kf7 {[%clk 0:00:12]} 58. Nd5 {[%clk 0:00:11]}  e6 {[%clk 0:00:12]} 59. Nf4 {[%clk 0:00:10]}  Nd2+ {[%clk 0:00:10]} 60. Ke5 {[%clk 0:00:08]}  Nf3+ {[%clk 0:00:10]} 61. Kd6 {[%clk 0:00:08]}  Nxg5 {[%clk 0:00:10]} 62. Kc6 {[%clk 0:00:09]}  e5 {[%clk 0:00:10]} 63. Ne2 {[%clk 0:00:05]}  Ne4 {[%clk 0:00:09]} 64. Kxb6 {[%clk 0:00:05]}  Ke6 {[%clk 0:00:10]} 65. Kc6 {[%clk 0:00:06]}  c4 {[%clk 0:00:10]} 66. Kb5 {[%clk 0:00:05]}  Kd5 {[%clk 0:00:10]} 67. Kb4 {[%clk 0:00:06]}  Nf2 {[%clk 0:00:09]} 68. Ng3 {[%clk 0:00:06]}  e4 {[%clk 0:00:10]} 69. Nf5 {[%clk 0:00:06]}  Nd3+ {[%clk 0:00:08]} 70. Kb5 {[%clk 0:00:06]}  Nb2 {[%clk 0:00:07]} 71. Ne3+ {[%clk 0:00:06]}  Ke5 {[%clk 0:00:08]} 72. Kb4 {[%clk 0:00:04]}  Kf4 {[%clk 0:00:08]} 73. Nd5+ {[%clk 0:00:03]}  Kf3 {[%clk 0:00:07]} 74. Ka3 {[%clk 0:00:04]}  Nd3 {[%clk 0:00:07]} 75. Ka4 {[%clk 0:00:04]}  e3 {[%clk 0:00:07]} 76. Nxe3 {[%clk 0:00:04]}  Kxe3 {[%clk 0:00:07]} 77. Kb5 {[%clk 0:00:05]}  Ne5 {[%clk 0:00:07]} 78. Kc5 {[%clk 0:00:05]}  Kd3 {[%clk 0:00:08]} 79. Kd5 {[%clk 0:00:05]}  Nf3 {[%clk 0:00:08]} 0-1


[Site "https://www.chess.com"]

[Event "Titled Tuesday Blitz August 22 Late 2023"]
[White "Martinez Alcantara, Jose Eduardo"]
[Black "Preotu, Razvan"]
[WhiteFideId "3805662"]
[BlackFideId "2613280"]
[WhiteElo "3024"]
[BlackElo "2721"]
[Result "1-0"]
[Round "3"]
[TimeControl "180+1"]
[Date "2023.08.22"]
[WhiteClock "0:00:52"]
[BlackClock "0:00:00"]
[Board "10"]

1. e4 {[%clk 0:03:00]}  c5 {[%clk 0:02:46]} 2. Nf3 {[%clk 0:03:01]}  d6 {[%clk 0:02:46]} 3. c3 {[%clk 0:03:01]}  Nf6 {[%clk 0:02:46]} 4. h3 {[%clk 0:03:02]}  Nc6 {[%clk 0:02:43]} 5. Bd3 {[%clk 0:03:02]}  e5 {[%clk 0:02:39]} 6. Bc2 {[%clk 0:03:02]}  g6 {[%clk 0:02:38]} 7. O-O {[%clk 0:03:02]}  Bg7 {[%clk 0:02:38]} 8. d4 {[%clk 0:03:03]}  cxd4 {[%clk 0:02:39]} 9. cxd4 {[%clk 0:03:03]}  exd4 {[%clk 0:02:39]} 10. Nxd4 {[%clk 0:03:04]}  O-O {[%clk 0:02:36]} 11. Nxc6 {[%clk 0:03:05]}  bxc6 {[%clk 0:02:36]} 12. Nc3 {[%clk 0:03:05]}  d5 {[%clk 0:02:34]} 13. Bg5 {[%clk 0:03:05]}  h6 {[%clk 0:02:24]} 14. Be3 {[%clk 0:03:05]}  dxe4 {[%clk 0:01:58]} 15. Nxe4 {[%clk 0:03:03]}  Nxe4 {[%clk 0:01:52]} 16. Bxe4 {[%clk 0:03:02]}  Ba6 {[%clk 0:01:15]} 17. Re1 {[%clk 0:02:56]}  Bxb2 {[%clk 0:01:05]} 18. Bxc6 {[%clk 0:02:52]}  Rc8 {[%clk 0:01:03]} 19. Rb1 {[%clk 0:02:00]}  Bc3 {[%clk 0:01:00]} 20. Qf3 {[%clk 0:01:42]}  Bxe1 {[%clk 0:01:00]} 21. Rxe1 {[%clk 0:01:43]}  Qd6 {[%clk 0:00:43]} 22. Be4 {[%clk 0:01:43]}  h5 {[%clk 0:00:38]} 23. Rd1 {[%clk 0:01:41]}  Qe7 {[%clk 0:00:34]} 24. Bd5 {[%clk 0:01:16]}  Rfd8 {[%clk 0:00:29]} 25. Rd4 {[%clk 0:01:16]}  Bc4 {[%clk 0:00:20]} 26. Rxc4 {[%clk 0:01:11]}  Rxc4 {[%clk 0:00:14]} 27. Bxc4 {[%clk 0:01:12]}  a5 {[%clk 0:00:08]} 28. Bb3 {[%clk 0:01:08]}  Kg7 {[%clk 0:00:08]} 29. g3 {[%clk 0:01:08]}  h4 {[%clk 0:00:07]} 30. g4 {[%clk 0:01:06]}  a4 {[%clk 0:00:05]} 31. Bxa4 {[%clk 0:01:04]}  Qe5 {[%clk 0:00:03]} 32. Bb3 {[%clk 0:01:03]}  f6 {[%clk 0:00:03]} 33. Kg2 {[%clk 0:01:03]}  g5 {[%clk 0:00:04]} 34. Qb7+ {[%clk 0:00:59]}  Kh8 {[%clk 0:00:04]} 35. Bc2 {[%clk 0:00:57]}  Kg8 {[%clk 0:00:03]} 36. Qh7+ {[%clk 0:00:54]}  Kf8 {[%clk 0:00:00]} 37. Bb3 {[%clk 0:00:52]} 1-0


[Site "https://www.chess.com"]

[Event "Titled Tuesday Blitz August 22 Late 2023"]
[White "carokannlover213"]
[Black "Sadhwani, Raunak"]
[BlackFideId "35093487"]
[WhiteElo "2709"]
[BlackElo "3017"]
[Result "0-1"]
[Round "3"]
[TimeControl "180+1"]
[Date "2023.08.22"]
[WhiteClock "0:00:02"]
[BlackClock "0:00:28"]
[Board "11"]

1. e4 {[%clk 0:03:00]}  d6 {[%clk 0:02:58]} 2. d4 {[%clk 0:03:01]}  g6 {[%clk 0:02:59]} 3. Nc3 {[%clk 0:03:01]}  Bg7 {[%clk 0:03:00]} 4. f4 {[%clk 0:02:55]}  Nf6 {[%clk 0:02:54]} 5. Nf3 {[%clk 0:02:51]}  c5 {[%clk 0:02:54]} 6. Bb5+ {[%clk 0:02:44]}  Nfd7 {[%clk 0:02:07]} 7. e5 {[%clk 0:02:44]}  cxd4 {[%clk 0:02:06]} 8. Qxd4 {[%clk 0:02:04]}  dxe5 {[%clk 0:02:06]} 9. fxe5 {[%clk 0:02:02]}  O-O {[%clk 0:02:06]} 10. Bf4 {[%clk 0:01:54]}  a6 {[%clk 0:01:49]} 11. Bxd7 {[%clk 0:01:34]}  Bxd7 {[%clk 0:01:50]} 12. O-O-O {[%clk 0:01:31]}  Qa5 {[%clk 0:01:50]} 13. Qd5 {[%clk 0:01:20]}  Qc7 {[%clk 0:01:28]} 14. Bg3 {[%clk 0:01:10]}  Be6 {[%clk 0:01:26]} 15. Qe4 {[%clk 0:01:07]}  Nc6 {[%clk 0:01:22]} 16. Nd5 {[%clk 0:01:07]}  Qa5 {[%clk 0:01:21]} 17. Kb1 {[%clk 0:00:50]}  Rfd8 {[%clk 0:01:20]} 18. Nc3 {[%clk 0:00:50]}  Bf5 {[%clk 0:01:18]} 19. Qe2 {[%clk 0:00:47]}  Nb4 {[%clk 0:01:15]} 20. Nd4 {[%clk 0:00:31]}  Rxd4 {[%clk 0:01:11]} 21. Rxd4 {[%clk 0:00:32]}  Nxc2 {[%clk 0:01:12]} 22. Re4 {[%clk 0:00:32]}  Nd4 {[%clk 0:01:08]} 23. Qe3 {[%clk 0:00:25]}  Ne6 {[%clk 0:01:04]} 24. Rf1 {[%clk 0:00:24]}  Rd8 {[%clk 0:00:43]} 25. Rxf5 {[%clk 0:00:21]}  gxf5 {[%clk 0:00:44]} 26. Rh4 {[%clk 0:00:20]}  Qc5 {[%clk 0:00:30]} 27. Qxc5 {[%clk 0:00:19]}  Nxc5 {[%clk 0:00:31]} 28. Kc2 {[%clk 0:00:18]}  Ne6 {[%clk 0:00:30]} 29. a4 {[%clk 0:00:14]}  Nd4+ {[%clk 0:00:29]} 30. Kb1 {[%clk 0:00:12]}  Nc6 {[%clk 0:00:30]} 31. Ne2 {[%clk 0:00:04]}  Nxe5 {[%clk 0:00:27]} 32. Rf4 {[%clk 0:00:03]}  e6 {[%clk 0:00:26]} 33. Rf1 {[%clk 0:00:04]}  Rd2 {[%clk 0:00:24]} 34. Nc3 {[%clk 0:00:04]}  Nc4 {[%clk 0:00:20]} 35. Nd1 {[%clk 0:00:04]}  Nxb2 {[%clk 0:00:20]} 36. Nxb2 {[%clk 0:00:04]}  Rxb2+ {[%clk 0:00:21]} 37. Kc1 {[%clk 0:00:04]}  Ra2 {[%clk 0:00:21]} 38. Rf3 {[%clk 0:00:05]}  Rxa4 {[%clk 0:00:21]} 39. Rd3 {[%clk 0:00:05]}  Bh6+ {[%clk 0:00:21]} 40. Kb1 {[%clk 0:00:05]}  Bg5 {[%clk 0:00:19]} 41. Rd7 {[%clk 0:00:04]}  Bf6 {[%clk 0:00:19]} 42. Rxb7 {[%clk 0:00:03]}  Ra1+ {[%clk 0:00:19]} 43. Kc2 {[%clk 0:00:03]}  Ra2+ {[%clk 0:00:20]} 44. Kb1 {[%clk 0:00:04]}  Rxg2 {[%clk 0:00:21]} 45. Ra7 {[%clk 0:00:03]}  Rb2+ {[%clk 0:00:19]} 46. Kc1 {[%clk 0:00:02]}  Rb6 {[%clk 0:00:19]} 47. Bf4 {[%clk 0:00:02]}  Kg7 {[%clk 0:00:19]} 48. h3 {[%clk 0:00:01]}  Rc6+ {[%clk 0:00:19]} 49. Kd2 {[%clk 0:00:02]}  Kg6 {[%clk 0:00:20]} 50. Kd3 {[%clk 0:00:02]}  e5 {[%clk 0:00:20]} 51. Be3 {[%clk 0:00:02]}  e4+ {[%clk 0:00:21]} 52. Ke2 {[%clk 0:00:02]}  Be5 {[%clk 0:00:21]} 53. Rb7 {[%clk 0:00:02]}  f4 {[%clk 0:00:21]} 54. Bg1 {[%clk 0:00:02]}  f6 {[%clk 0:00:21]} 55. Rb1 {[%clk 0:00:02]}  Kf5 {[%clk 0:00:22]} 56. Kf1 {[%clk 0:00:02]}  f3 {[%clk 0:00:22]} 57. Bf2 {[%clk 0:00:03]}  Rd6 {[%clk 0:00:20]} 58. Re1 {[%clk 0:00:02]}  Rd5 {[%clk 0:00:20]} 59. Be3 {[%clk 0:00:02]}  Bf4 {[%clk 0:00:21]} 60. Bf2 {[%clk 0:00:03]}  Re5 {[%clk 0:00:21]} 61. Be3 {[%clk 0:00:02]}  Bxe3 {[%clk 0:00:21]} 62. Rxe3 {[%clk 0:00:02]}  Kf4 {[%clk 0:00:22]} 63. Kf2 {[%clk 0:00:03]}  Rg5 {[%clk 0:00:22]} 64. Re1 {[%clk 0:00:01]}  Rg2+ {[%clk 0:00:22]} 65. Kf1 {[%clk 0:00:02]}  e3 {[%clk 0:00:23]} 66. h4 {[%clk 0:00:02]}  e2+ {[%clk 0:00:23]} 67. Rxe2 {[%clk 0:00:02]}  Rxe2 {[%clk 0:00:24]} 68. h5 {[%clk 0:00:01]}  a5 {[%clk 0:00:25]} 69. h6 {[%clk 0:00:02]}  a4 {[%clk 0:00:26]} 70. Kg1 {[%clk 0:00:02]}  a3 {[%clk 0:00:27]} 71. Kf1 {[%clk 0:00:02]}  a2 {[%clk 0:00:28]} 0-1


[Site "https://www.chess.com"]

[Event "Titled Tuesday Blitz August 22 Late 2023"]
[White "Matlakov, Maxim"]
[Black "Matinian, Nikita"]
[WhiteFideId "4168003"]
[BlackFideId "24129100"]
[WhiteElo "3004"]
[BlackElo "2704"]
[Result "1-0"]
[Round "3"]
[TimeControl "180+1"]
[Date "2023.08.22"]
[WhiteClock "0:01:35"]
[BlackClock "0:00:05"]
[Board "13"]

1. e4 {[%clk 0:03:00]}  c5 {[%clk 0:02:58]} 2. Nf3 {[%clk 0:03:00]}  d6 {[%clk 0:02:59]} 3. Bb5+ {[%clk 0:03:00]}  Nd7 {[%clk 0:02:59]} 4. O-O {[%clk 0:03:00]}  a6 {[%clk 0:02:57]} 5. Bxd7+ {[%clk 0:03:01]}  Bxd7 {[%clk 0:02:58]} 6. c3 {[%clk 0:03:01]}  g6 {[%clk 0:02:55]} 7. d4 {[%clk 0:03:01]}  Bg7 {[%clk 0:02:55]} 8. h3 {[%clk 0:02:58]}  Rc8 {[%clk 0:02:54]} 9. Re1 {[%clk 0:02:57]}  Qb6 {[%clk 0:02:35]} 10. a4 {[%clk 0:02:47]}  Nh6 {[%clk 0:02:21]} 11. a5 {[%clk 0:02:46]}  Qc7 {[%clk 0:02:18]} 12. d5 {[%clk 0:02:45]}  O-O {[%clk 0:02:13]} 13. Nbd2 {[%clk 0:02:37]}  e5 {[%clk 0:01:58]} 14. dxe6 {[%clk 0:02:30]}  Bxe6 {[%clk 0:01:49]} 15. Nf1 {[%clk 0:02:30]}  f5 {[%clk 0:01:05]} 16. Ng5 {[%clk 0:02:24]}  Rce8 {[%clk 0:01:00]} 17. Bf4 {[%clk 0:02:22]}  Be5 {[%clk 0:00:42]} 18. Nxe6 {[%clk 0:02:20]}  Rxe6 {[%clk 0:00:36]} 19. Bxh6 {[%clk 0:02:20]}  Rfe8 {[%clk 0:00:37]} 20. exf5 {[%clk 0:02:19]}  Bh2+ {[%clk 0:00:36]} 21. Nxh2 {[%clk 0:02:12]}  Rxe1+ {[%clk 0:00:36]} 22. Qxe1 {[%clk 0:02:12]}  Rxe1+ {[%clk 0:00:36]} 23. Rxe1 {[%clk 0:02:13]}  gxf5 {[%clk 0:00:34]} 24. Nf3 {[%clk 0:02:12]}  Kf7 {[%clk 0:00:20]} 25. Ng5+ {[%clk 0:02:12]}  Kg6 {[%clk 0:00:20]} 26. Re6+ {[%clk 0:02:12]}  Kh5 {[%clk 0:00:21]} 27. f4 {[%clk 0:01:43]}  Qxa5 {[%clk 0:00:15]} 28. Bf8 {[%clk 0:01:40]}  Kh4 {[%clk 0:00:05]} 29. Kh2 {[%clk 0:01:36]}  h5 {[%clk 0:00:05]} 30. g3# {[%clk 0:01:35]} 1-0


[Site "https://www.chess.com"]

[Event "Titled Tuesday Blitz August 22 Late 2023"]
[White "Xiong, Jeffery"]
[Black "Kourkoulos-Arditis, Stamatis"]
[WhiteFideId "2047640"]
[BlackFideId "4221990"]
[WhiteElo "2996"]
[BlackElo "2701"]
[Result "1-0"]
[Round "3"]
[TimeControl "180+1"]
[Date "2023.08.22"]
[WhiteClock "0:00:54"]
[BlackClock "0:00:00"]
[Board "14"]

1. e4 {[%clk 0:03:00]}  Nf6 {[%clk 0:02:58]} 2. e5 {[%clk 0:03:00]}  Nd5 {[%clk 0:02:59]} 3. c4 {[%clk 0:03:01]}  Nb6 {[%clk 0:02:58]} 4. d4 {[%clk 0:03:02]}  d6 {[%clk 0:02:59]} 5. f4 {[%clk 0:03:02]}  Bf5 {[%clk 0:02:58]} 6. Nc3 {[%clk 0:03:02]}  dxe5 {[%clk 0:02:58]} 7. fxe5 {[%clk 0:03:03]}  Nc6 {[%clk 0:02:58]} 8. Be3 {[%clk 0:03:03]}  e6 {[%clk 0:02:59]} 9. Nf3 {[%clk 0:03:04]}  Bg4 {[%clk 0:02:59]} 10. Qd2 {[%clk 0:02:53]}  Bb4 {[%clk 0:02:28]} 11. a3 {[%clk 0:02:36]}  Bxc3 {[%clk 0:02:28]} 12. Qxc3 {[%clk 0:02:37]}  Bxf3 {[%clk 0:02:28]} 13. gxf3 {[%clk 0:02:37]}  Qh4+ {[%clk 0:02:29]} 14. Bf2 {[%clk 0:02:37]}  Qf4 {[%clk 0:02:29]} 15. Rg1 {[%clk 0:01:59]}  O-O-O {[%clk 0:02:11]} 16. Rg4 {[%clk 0:01:52]}  Qf5 {[%clk 0:01:39]} 17. O-O-O {[%clk 0:01:52]}  Rd7 {[%clk 0:01:18]} 18. Rxg7 {[%clk 0:01:41]}  Rhd8 {[%clk 0:01:18]} 19. Be2 {[%clk 0:01:20]}  Qh3 {[%clk 0:00:52]} 20. Rg4 {[%clk 0:01:10]}  Qxh2 {[%clk 0:00:49]} 21. Qe3 {[%clk 0:01:10]}  Qh5 {[%clk 0:00:42]} 22. Rh4 {[%clk 0:01:09]}  Qg6 {[%clk 0:00:23]} 23. Rg1 {[%clk 0:01:05]}  Qf5 {[%clk 0:00:17]} 24. Rg5 {[%clk 0:00:57]}  Nxd4 {[%clk 0:00:11]} 25. Rxd4 {[%clk 0:00:56]}  Rxd4 {[%clk 0:00:10]} 26. Rxf5 {[%clk 0:00:57]}  exf5 {[%clk 0:00:11]} 27. Qxd4 {[%clk 0:00:57]}  Rxd4 {[%clk 0:00:10]} 28. Bxd4 {[%clk 0:00:58]}  Nd7 {[%clk 0:00:09]} 29. f4 {[%clk 0:00:58]}  Nf8 {[%clk 0:00:09]} 30. Bh5 {[%clk 0:00:57]}  Ng6 {[%clk 0:00:08]} 31. Be3 {[%clk 0:00:56]}  Kd7 {[%clk 0:00:09]} 32. Kd2 {[%clk 0:00:57]}  b6 {[%clk 0:00:09]} 33. b4 {[%clk 0:00:57]}  Ke6 {[%clk 0:00:09]} 34. Kd3 {[%clk 0:00:56]}  f6 {[%clk 0:00:09]} 35. exf6 {[%clk 0:00:56]}  Kxf6 {[%clk 0:00:10]} 36. Kd4 {[%clk 0:00:52]}  Ne7 {[%clk 0:00:09]} 37. Bf3 {[%clk 0:00:51]}  Kg6 {[%clk 0:00:08]} 38. Bf2 {[%clk 0:00:52]}  Kf6 {[%clk 0:00:01]} 39. Bh4+ {[%clk 0:00:52]}  Ke6 {[%clk 0:00:01]} 40. Bxe7 {[%clk 0:00:53]}  Kxe7 {[%clk 0:00:00]} 41. Ke5 {[%clk 0:00:54]} 1-0


[Site "https://www.chess.com"]

[Event "Titled Tuesday Blitz August 22 Late 2023"]
[White "Hjartarson, Johann"]
[Black "Van Foreest, Jorden"]
[WhiteFideId "2300044"]
[BlackFideId "1039784"]
[WhiteElo "2700"]
[BlackElo "2994"]
[Result "0-1"]
[Round "3"]
[TimeControl "180+1"]
[Date "2023.08.22"]
[WhiteClock "0:00:01"]
[BlackClock "0:00:19"]
[Board "15"]

1. c4 {[%clk 0:03:00]}  g6 {[%clk 0:03:00]} 2. g3 {[%clk 0:03:00]}  Bg7 {[%clk 0:03:01]} 3. Bg2 {[%clk 0:03:00]}  e6 {[%clk 0:02:59]} 4. Nc3 {[%clk 0:02:59]}  Ne7 {[%clk 0:02:59]} 5. d4 {[%clk 0:02:57]}  d5 {[%clk 0:02:57]} 6. Nf3 {[%clk 0:02:57]}  Nbc6 {[%clk 0:02:53]} 7. cxd5 {[%clk 0:02:54]}  exd5 {[%clk 0:02:54]} 8. O-O {[%clk 0:02:53]}  h6 {[%clk 0:02:50]} 9. Re1 {[%clk 0:02:38]}  O-O {[%clk 0:02:48]} 10. e4 {[%clk 0:02:36]}  dxe4 {[%clk 0:02:45]} 11. Nxe4 {[%clk 0:02:36]}  Bg4 {[%clk 0:02:37]} 12. Be3 {[%clk 0:02:15]}  Nf5 {[%clk 0:02:29]} 13. d5 {[%clk 0:02:06]}  Nce7 {[%clk 0:02:28]} 14. h3 {[%clk 0:01:55]}  Nxe3 {[%clk 0:02:22]} 15. Rxe3 {[%clk 0:01:53]}  Bxf3 {[%clk 0:02:23]} 16. Qxf3 {[%clk 0:01:49]}  Nxd5 {[%clk 0:02:09]} 17. Rd3 {[%clk 0:01:48]}  c6 {[%clk 0:02:07]} 18. Nc3 {[%clk 0:01:41]}  Bxc3 {[%clk 0:02:05]} 19. bxc3 {[%clk 0:01:41]}  Qf6 {[%clk 0:02:06]} 20. Rb1 {[%clk 0:01:33]}  Qxf3 {[%clk 0:01:59]} 21. Bxf3 {[%clk 0:01:33]}  Nb6 {[%clk 0:02:00]} 22. c4 {[%clk 0:01:28]}  Na4 {[%clk 0:01:40]} 23. Re3 {[%clk 0:01:23]}  Rab8 {[%clk 0:01:32]} 24. Ra3 {[%clk 0:01:15]}  Nc5 {[%clk 0:01:31]} 25. Ra5 {[%clk 0:01:06]}  Na6 {[%clk 0:01:22]} 26. Rd1 {[%clk 0:00:56]}  Rfc8 {[%clk 0:01:16]} 27. Rd7 {[%clk 0:00:53]}  Rc7 {[%clk 0:01:16]} 28. Rxc7 {[%clk 0:00:52]}  Nxc7 {[%clk 0:01:17]} 29. Rxa7 {[%clk 0:00:52]}  Ne6 {[%clk 0:01:17]} 30. a4 {[%clk 0:00:46]}  Nc5 {[%clk 0:01:12]} 31. Ra5 {[%clk 0:00:42]}  Nb3 {[%clk 0:01:02]} 32. Ra7 {[%clk 0:00:39]}  Kg7 {[%clk 0:00:58]} 33. a5 {[%clk 0:00:34]}  Nc5 {[%clk 0:00:54]} 34. a6 {[%clk 0:00:33]}  bxa6 {[%clk 0:00:54]} 35. Bxc6 {[%clk 0:00:33]}  Rd8 {[%clk 0:00:49]} 36. Bd5 {[%clk 0:00:33]}  Rd7 {[%clk 0:00:49]} 37. Ra8 {[%clk 0:00:31]}  Kf6 {[%clk 0:00:48]} 38. Rc8 {[%clk 0:00:30]}  Nb3 {[%clk 0:00:46]} 39. Rc6+ {[%clk 0:00:30]}  Ke5 {[%clk 0:00:46]} 40. Rxa6 {[%clk 0:00:30]}  Rc7 {[%clk 0:00:46]} 41. Kg2 {[%clk 0:00:29]}  Nc5 {[%clk 0:00:47]} 42. Rb6 {[%clk 0:00:28]}  Kd4 {[%clk 0:00:47]} 43. Rb8 {[%clk 0:00:28]}  Ra7 {[%clk 0:00:47]} 44. Rf8 {[%clk 0:00:27]}  f5 {[%clk 0:00:47]} 45. Rf6 {[%clk 0:00:27]}  Ra2 {[%clk 0:00:47]} 46. Rxg6 {[%clk 0:00:26]}  Nd3 {[%clk 0:00:48]} 47. Rxh6 {[%clk 0:00:25]}  Nxf2 {[%clk 0:00:43]} 48. Kf1 {[%clk 0:00:25]}  Nd1 {[%clk 0:00:36]} 49. Rd6 {[%clk 0:00:21]}  Ne3+ {[%clk 0:00:33]} 50. Ke1 {[%clk 0:00:21]}  Kd3 {[%clk 0:00:20]} 51. Be6+ {[%clk 0:00:18]}  Ke4 {[%clk 0:00:20]} 52. c5 {[%clk 0:00:16]}  Kf3 {[%clk 0:00:20]} 53. Bd5+ {[%clk 0:00:15]}  Kxg3 {[%clk 0:00:21]} 54. c6 {[%clk 0:00:15]}  Rc2 {[%clk 0:00:21]} 55. Rg6+ {[%clk 0:00:10]}  Kf4 {[%clk 0:00:20]} 56. Bf7 {[%clk 0:00:08]}  Kf3 {[%clk 0:00:18]} 57. Bd5+ {[%clk 0:00:01]}  Nxd5 {[%clk 0:00:19]} 0-1


[Site "https://www.chess.com"]